fUSD/lending_fUSD_20240117
["ID","MTS","AMOUNT","RATE_DAILY","PERIOD"]
[311873560,1705482642794,-500.0,0.00021917,2]
[311873561,1705482642803,-500.0,0.00021917,2]
[311873562,1705482642812,-500.0,0.00021917,2]
[311873563,1705482642821,-500.0,0.00021917,2]
[311873564,1705482642830,-500.0,0.00021917,2]
[311873565,1705482642839,-500.0,0.00021917,2]
[311873566,1705482642848,-500.0,0.00021917,2]
[311873567,1705482642857,-976.85,0.00021917,2]
[311873568,1705482642866,-1026.32,0.00021917,2]
[311873569,1705482642875,-682.18,0.00021917,2]
[311873570,1705482642885,-500.0,0.00021917,2]
[311873571,1705482642894,-500.0,0.00021917,2]
[311873572,1705482642903,-502.52685011,0.00021917,2]
[311873573,1705482642912,-617.08,0.00021917,2]
[311873574,1705482642921,-500.0,0.00021917,2]
[311873576,1705482642930,-500.0,0.00021917,2]
[311873578,1705482642939,-500.0,0.00021917,2]
[311873580,1705482642948,-570.16,0.00021917,2]
[311873581,1705482642957,-500.0,0.00021917,2]
[311873583,1705482642967,-500.0,0.00021917,2]
[311873584,1705482642976,-807.97,0.00021917,2]
[311873585,1705482642985,-500.00000001,0.00021917,2]
[311873586,1705482642994,-1100.12,0.00021917,2]
[311873587,1705482643003,-500.0,0.00021917,2]
[311873588,1705482643012,-500.0,0.00021917,2]
[311873589,1705482643021,-1151.49,0.00021917,2]
[311873590,1705482643030,-214.70943241,0.00021917,2]
[311873591,1705482643040,-500.0,0.00021917,2]
[311873592,1705482643049,-500.0,0.00021917,2]
[311873594,1705482643058,-702.31,0.00021917,2]
[311873595,1705482643069,-500.0,0.00021917,2]
[311873597,1705482643078,-500.0,0.00021917,2]
[311873599,1705482643087,-500.0,0.00021917,2]
[311873601,1705482643096,-659.87,0.00021917,2]
[311873602,1705482643105,-1339.07,0.00021917,2]
[311873603,1705482643114,-505.98491461,0.00021917,2]
[311873604,1705482643122,-500.0,0.00021917,2]
[311873605,1705482643132,-500.0,0.00021917,2]
[311873606,1705482643141,-500.0,0.00021917,2]
[311873607,1705482643150,-717.31,0.00021917,2]
[311873608,1705482643159,-500.0,0.00021917,2]
[311873609,1705482643168,-893.42,0.00021917,2]
[311873610,1705482643177,-500.0,0.00021917,2]
[311873611,1705482643186,-500.0,0.00021917,2]
[311873612,1705482643195,-528.1,0.00021917,2]
[311873613,1705482643204,-500.0,0.00021917,2]
[311873614,1705482643216,-1047.79,0.00021917,2]
[311873615,1705482643224,-501.23,0.00021917,2]
[311873616,1705482643233,-500.0,0.00021917,2]
[311873617,1705482643241,-1232.06,0.00021917,2]
[311873618,1705482643250,-500.0,0.00021917,2]
[311873619,1705482643260,-500.0,0.00021917,2]
[311873620,1705482643269,-1176.51,0.00021917,2]
[311873621,1705482643278,-500.0,0.00021917,2]
[311873622,1705482643287,-500.0,0.00021917,2]
[311873623,1705482643297,-500.0,0.00021917,2]
[311873624,1705482643306,-500.0,0.00021917,2]
[311873625,1705482643316,-1035.88,0.00021917,2]
[311873626,1705482643325,-500.0,0.00021917,2]
[311873627,1705482643334,-618.55,0.00021917,10]
[311873628,1705482643343,-929.7,0.00021917,2]
[311873629,1705482643351,-500.0,0.00021917,2]
[311873630,1705482643360,-500.0,0.00021917,2]
[311873631,1705482643369,-1063.6,0.00021917,2]
[311873632,1705482643378,-500.0,0.00021917,2]
[311873633,1705482643387,-500.0,0.00021917,2]
[311873634,1705482643397,-1364.91,0.00021917,2]
[311873635,1705482643406,-2396.93,0.00021917,2]
[311873636,1705482643415,-600.65,0.00021917,2]
[311873637,1705482643424,-500.0,0.00021917,2]
[311873638,1705482643433,-500.0,0.00021917,2]
[311873639,1705482643442,-1001.98,0.00021917,2]
[311873640,1705482643451,-500.0,0.00021917,2]
[311873641,1705482643461,-500.0,0.00021917,2]
[311873642,1705482643471,-832.62,0.00021917,2]
[311873643,1705482643480,-840.75,0.00021917,2]
[311873645,1705482643489,-506.46,0.00021917,2]
[311873647,1705482643498,-712.52,0.00021917,2]
[311873649,1705482643507,-738.13,0.00021917,2]
[311873650,1705482643517,-500.0,0.00021917,2]
[311873651,1705482643526,-865.12,0.00021917,2]
[311873652,1705482643535,-500.0,0.00021917,2]
[311873653,1705482643544,-699.07,0.00021917,2]
[311873654,1705482643554,-1412.34,0.00021917,2]
[311873655,1705482643565,-500.0,0.00021917,2]
[311873656,1705482643575,-1074.48,0.00021917,2]
[311873657,1705482643585,-683.24,0.00021917,2]
[311873658,1705482643595,-928.54,0.00021917,7]
[311873659,1705482643606,-635.26,0.00021917,2]
[311873660,1705482643616,-500.0,0.00021917,2]
[311873662,1705482643625,-500.0,0.00021917,2]
[311873663,1705482643634,-500.0,0.00021917,2]
[311873664,1705482643644,-811.63,0.00021917,2]
[311873665,1705482643654,-500.0,0.00021917,2]
[311873666,1705482643663,-500.0,0.00021917,2]
[311873667,1705482643673,-500.0,0.00021917,2]
[311873668,1705482643682,-500.0,0.00021917,2]
[311873669,1705482643691,-1685.07,0.00021917,2]
[311873670,1705482643702,-500.0,0.00021917,2]
[311873671,1705482643711,-999.36,0.00021917,2]
[311873672,1705482643721,-1560.83,0.00021917,2]
[311873673,1705482643730,-703.23,0.00021917,2]
[311873674,1705482643739,-500.45,0.00021917,2]
[311873675,1705482643749,-500.0,0.00021917,2]
[311873676,1705482643758,-500.0,0.00021917,2]
[311873677,1705482643768,-500.0,0.00021917,2]
[311873678,1705482643777,-1058.02,0.00021917,2]
[311873679,1705482643787,-2137.0,0.00021917,2]
[311873680,1705482643796,-504.96,0.00021917,2]
[311873681,1705482643805,-445.46865232,0.00021917,2]
[311873682,1705482643817,-500.0,0.00021917,2]
[311873683,1705482643826,-500.0,0.00021917,2]
[311873684,1705482643836,-1352.6,0.00021917,2]
[311873685,1705482643845,-500.0,0.00021917,2]
[311873686,1705482643856,-500.0,0.00021917,2]
[311873687,1705482643865,-994.85,0.00021917,2]
[311873688,1705482643875,-300.0,0.00021917,2]
[311873689,1705482643886,-500.0,0.00021917,2]
[311873690,1705482643897,-500.0,0.00021917,2]
[311873691,1705482643907,-500.0,0.00021917,2]
[311873692,1705482643918,-500.0,0.00021917,2]
[311873693,1705482643927,-500.0,0.00021917,2]
[311873694,1705482643937,-907.59,0.00021917,2]
[311873695,1705482643949,-500.0,0.00021917,2]
[311873696,1705482643958,-500.0,0.00021917,2]
[311873697,1705482643969,-770.41,0.00021917,2]
[311873698,1705482643978,-500.0,0.00021917,2]
[311873699,1705482643988,-842.82,0.00021917,2]
[311873700,1705482643998,-500.0,0.00021917,2]
[311873701,1705482644009,-500.0,0.00021917,2]
[311873702,1705482644020,-500.0,0.00021917,2]
[311873703,1705482644030,-516.08801815,0.00021917,2]
[311873704,1705482644041,-849.94,0.00021917,2]
[311873705,1705482644051,-500.0,0.00021917,2]
[311873706,1705482644062,-521.81456258,0.00021917,2]
[311873707,1705482644072,-830.59,0.00021917,2]
[311873708,1705482644083,-500.0,0.00021917,2]
[311873709,1705482644093,-500.0,0.00021917,2]
[311873710,1705482644300,-500.0,0.00021917,2]
[311873711,1705482644335,-500.0,0.00021917,2]
[311873712,1705482644344,-500.0,0.00021917,2]
[311873713,1705482644353,-500.0,0.00021917,2]
[311873714,1705482644362,-500.0,0.00021917,2]
[311873715,1705482644371,-2779.87,0.00021917,2]
[311873716,1705482644381,-500.0,0.00021917,2]
[311873717,1705482644390,-1104.42,0.00021917,2]
[311873718,1705482644399,-503.6366536,0.00021917,2]
[311873719,1705482644408,-500.0,0.00021917,2]
[311873720,1705482644417,-500.0,0.00021917,2]
[311873721,1705482644426,-500.0,0.00021917,2]
[311873722,1705482644435,-500.0,0.00021917,2]
[311873723,1705482644445,-741.46,0.00021917,2]
[311873724,1705482644454,-1257.22,0.00021917,2]
[311873725,1705482644463,-500.0,0.00021917,2]
[311873726,1705482644472,-500.0,0.00021917,2]
[311873727,1705482644482,-878.01,0.00021917,2]
[311873728,1705482644491,-1062.9,0.00021917,2]
[311873729,1705482644501,-500.0,0.00021917,2]
[311873730,1705482644510,-500.0,0.00021917,2]
[311873731,1705482644519,-500.0,0.00021917,2]
[311873732,1705482644529,-500.0,0.00021917,2]
[311873733,1705482644538,-634.94,0.00021917,2]
[311873734,1705482644548,-2385.25,0.00021917,2]
[311873735,1705482644557,-500.0,0.00021917,2]
[311873736,1705482644566,-2806.28,0.00021917,2]
[311873737,1705482644576,-500.0,0.00021917,2]
[311873738,1705482644585,-478.1023633,0.00021917,2]
[311873739,1705482644594,-1008.89,0.00021917,2]
[311873740,1705482644604,-500.0,0.00021917,2]
[311873741,1705482644613,-847.51,0.00021917,2]
[311873742,1705482644622,-989.78,0.00021917,2]
[311873743,1705482644632,-500.0,0.00021917,2]
[311873744,1705482644641,-500.0,0.00021917,2]
[311873745,1705482644650,-500.0,0.00021917,2]
[311873746,1705482644659,-500.0,0.00021917,2]
[311873747,1705482644668,-500.0,0.00021917,2]
[311873748,1705482644678,-835.63,0.00021917,2]
[311873749,1705482644687,-626.44,0.00021917,2]
[311873750,1705482644696,-500.0,0.00021917,2]
[311873751,1705482644706,-515.06536428,0.00021917,2]
[311873752,1705482644715,-500.0,0.00021917,2]
[311873753,1705482644724,-1278.69,0.00021917,2]
[311873754,1705482644733,-530.11755405,0.00021917,2]
[311873755,1705482644743,-500.0,0.00021917,2]
[311873756,1705482644752,-500.0,0.00021917,2]
[311873757,1705482644761,-650.84,0.00021917,2]
[311873758,1705482644771,-500.0,0.00021917,2]
[311873759,1705482644780,-1010.14961699,0.00021917,2]
[311873760,1705482644789,-500.0,0.00021917,2]
[311873761,1705482644798,-500.0,0.00021917,2]
[311873762,1705482644807,-500.0,0.00021917,2]
[311873763,1705482644817,-500.0,0.00021917,2]
[311873764,1705482644827,-1134.98,0.00021917,2]
[311873765,1705482644836,-500.0,0.00021917,2]
[311873766,1705482644845,-523.79,0.00021917,2]
[311873767,1705482644854,-971.67,0.00021917,2]
[311873768,1705482644864,-500.0,0.00021917,2]
[311873769,1705482644873,-2130.23,0.00021917,2]
[311873770,1705482644882,-634.57,0.00021917,2]
[311873771,1705482644891,-500.0,0.00021917,2]
[311873772,1705482644900,-539.32,0.00021917,2]
[311873773,1705482644909,-2700.94,0.00021917,2]
[311873774,1705482644918,-500.0,0.00021917,2]
[311873775,1705482644928,-500.0,0.00021917,2]
[311873776,1705482644937,-974.81,0.00021917,2]
[311873777,1705482644946,-500.0,0.00021917,2]
[311873778,1705482644955,-1153.48,0.00021917,2]
[311873779,1705482644964,-500.0,0.00021917,2]
[311873780,1705482644973,-500.0,0.00021917,2]
[311873781,1705482644982,-708.03,0.00021917,2]
[311873782,1705482644992,-508.73,0.00021917,2]
[311873783,1705482645001,-500.0,0.00021917,2]
[311873784,1705482645010,-1446.02,0.00021917,2]
[311873785,1705482645019,-500.0,0.00021917,2]
[311873786,1705482645028,-706.43,0.00021917,2]
[311873787,1705482645037,-500.0,0.00021917,2]
[311873788,1705482645046,-852.1,0.00021917,2]
[311873789,1705482645055,-1187.06,0.00021917,2]
[311873790,1705482645064,-500.0,0.00021917,2]
[311873791,1705482645074,-247.40716098,0.00021917,2]
[311873792,1705482645083,-3504.33,0.00021917,2]
[311873793,1705482645092,-1360.94,0.00021917,2]
[311873794,1705482645101,-500.0,0.00021917,2]
[311873795,1705482645110,-500.0,0.00021917,2]
[311873796,1705482645119,-500.0,0.00021917,2]
[311873797,1705482645128,-650.48,0.00021917,2]
[311873798,1705482645137,-500.0,0.00021917,2]
[311873799,1705482645147,-500.0,0.00021917,2]
[311873800,1705482645156,-500.0,0.00021917,2]
[311873801,1705482645165,-507.75,0.00021917,2]
[311873802,1705482645174,-500.0,0.00021917,2]
[311873803,1705482645183,-543.95,0.00021917,2]
[311873804,1705482645193,-1166.66,0.00021917,2]
[311873805,1705482645204,-5874.88,0.00021917,2]
[311873806,1705482645214,-1548.5,0.00021917,2]
[311873807,1705482645224,-2491.2,0.00021917,2]
[311873808,1705482645233,-1396.32,0.00021917,2]
[311873809,1705482645242,-1034.92,0.00021917,2]
[311873810,1705482645252,-504.69,0.00021917,2]
[311873811,1705482645262,-500.0,0.00021917,2]
[311873812,1705482645271,-500.0,0.00021917,2]
[311873813,1705482645282,-657.8,0.00021917,2]
[311873814,1705482645291,-871.39,0.00021917,2]
[311873815,1705482645300,-500.0,0.00021917,2]
[311873816,1705482645310,-500.0,0.00021917,2]
[311873817,1705482645320,-1177.93,0.00021917,2]
[311873818,1705482645329,-1436.21,0.00021917,2]
[311873819,1705482645339,-500.0,0.00021917,2]
[311873820,1705482645348,-500.0,0.00021917,2]
[311873821,1705482645357,-4861.57,0.00021917,2]
[311873822,1705482645366,-994.87,0.00021917,2]
[311873823,1705482645375,-500.0,0.00021917,2]
[311873824,1705482645384,-500.0,0.00021917,2]
[311873825,1705482645393,-1038.85,0.00021917,2]
[311873826,1705482645402,-500.0,0.00021917,2]
[311873827,1705482645411,-500.0,0.00021917,2]
[311873828,1705482645421,-501.01129582,0.00021917,2]
[311873829,1705482645430,-500.0,0.00021917,2]
[311873830,1705482645439,-1175.39,0.00021917,2]
[311873831,1705482645450,-500.0,0.00021917,2]
[311873832,1705482645460,-504.48596087,0.00021917,2]
[311873833,1705482645470,-2523.29,0.00021917,2]
[311873834,1705482645480,-1363.2,0.00021917,2]
[311873835,1705482645490,-912.77,0.00021917,2]
[311873836,1705482645499,-504.72274664,0.00021917,2]
[311873837,1705482645508,-500.0,0.00021917,2]
[311873838,1705482645518,-500.0,0.00021917,2]
[311873839,1705482645528,-541.19275159,0.00021917,2]
[311873840,1705482645537,-872.74,0.00021917,2]
[311873841,1705482645547,-150.0,0.00021917,2]
[311873842,1705482645556,-599.28,0.00021917,2]
[311873843,1705482645566,-500.0,0.00021917,2]
[311873844,1705482645576,-1129.01,0.00021917,2]
[311873845,1705482645585,-575.59,0.00021917,2]
[311873846,1705482645594,-500.0,0.00021917,2]
[311873847,1705482645603,-500.0,0.00021917,2]
[311873848,1705482645613,-500.0,0.00021917,2]
[311873849,1705482645622,-4674.39,0.00021917,2]
[311873850,1705482645631,-737.77,0.00021917,2]
[311873851,1705482645641,-538.03,0.00021917,2]
[311873852,1705482645651,-500.0,0.00021917,2]
[311873853,1705482645660,-2810.55,0.00021917,2]
[311873854,1705482645669,-500.0,0.00021917,2]
[311873855,1705482645679,-668.13,0.00021917,2]
[311873856,1705482645688,-1571.61,0.00021917,2]
[311873857,1705482645697,-524.3,0.00021917,2]
[311873858,1705482645706,-2768.91,0.00021917,2]
[311873859,1705482645716,-503.25877934,0.00021917,2]
[311873860,1705482645725,-500.0,0.00021917,2]
[311873861,1705482645734,-514.08,0.00021917,2]
[311873862,1705482645743,-3298.6,0.00021917,2]
[311873863,1705482645752,-500.0,0.00021917,2]
[311873864,1705482645761,-500.0,0.00021917,2]
[311873865,1705482645771,-346.12264505,0.00021917,2]
[311873866,1705482645781,-645.28,0.00021917,2]
[311873867,1705482645790,-500.0,0.00021917,2]
[311873868,1705482645799,-1084.74,0.00021917,2]
[311873869,1705482645808,-546.0,0.00021917,2]
[311873870,1705482645819,-500.0,0.00021917,2]
[311873871,1705482645828,-3614.72,0.00021917,5]
[311873872,1705482645838,-1239.9,0.00021917,2]
[311873873,1705482645847,-500.0,0.00021917,2]
[311873874,1705482645856,-5807.34,0.00021917,2]
[311873875,1705482645866,-780.66,0.00021917,2]
[311873876,1705482645875,-500.0,0.00021917,2]
[311873877,1705482645884,-626.37,0.00021917,2]
[311873878,1705482645894,-2127.48,0.00021917,2]
[311873879,1705482645903,-727.77,0.00021917,2]
[311873880,1705482645913,-626.22,0.00021917,2]
[311873881,1705482645923,-644.7,0.00021917,2]
[311873882,1705482645932,-1243.96,0.00021917,2]
[311873883,1705482645942,-500.0,0.00021917,2]
[311873884,1705482645951,-936.91,0.00021917,2]
[311873886,1705482645961,-549.4,0.00021917,2]
[311873887,1705482645970,-500.0,0.00021917,2]
[311873888,1705482645979,-1570.16,0.00021917,2]
[311873889,1705482645989,-4810.18,0.00021917,2]
[311873890,1705482645998,-9347.66,0.00021917,2]
[311873891,1705482646007,-500.0,0.00021917,2]
[311873892,1705482646017,-1286.34,0.00021917,2]
[311873893,1705482646027,-2150.3,0.00021917,2]
[311873894,1705482646036,-500.0,0.00021917,2]
[311873895,1705482646045,-2929.17,0.00021917,2]
[311873896,1705482646054,-838.13,0.00021917,2]
[311873897,1705482646064,-500.0,0.00021917,2]
[311873898,1705482646073,-550.19629348,0.00021917,2]
[311873899,1705482646082,-500.0,0.00021917,2]
[311873900,1705482646092,-2031.97,0.00021917,2]
[311873901,1705482646101,-516.88,0.00021917,2]
[311873902,1705482646110,-500.0,0.00021917,2]
[311873903,1705482646120,-500.0,0.00021917,2]
[311873904,1705482646129,-1752.81,0.00021917,2]
[311873906,1705482646138,-653.37,0.00021917,2]
[311873908,1705482646147,-2281.94,0.00021917,2]
[311873910,1705482646157,-7383.44,0.00021917,2]
[311873912,1705482646166,-874.07,0.00021917,2]
[311873914,1705482646176,-500.0,0.00021917,2]
[311873915,1705482646185,-500.0,0.00021917,2]
[311873916,1705482646194,-2652.59,0.00021917,2]
[311873917,1705482646204,-500.0,0.00021917,2]
[311873918,1705482646218,-728.01,0.00021917,2]
[311873919,1705482646227,-500.0,0.00021917,2]
[311873920,1705482646237,-11575.96,0.00021917,2]
[311873921,1705482646246,-611.46,0.00021917,2]
[311873922,1705482646256,-500.0,0.00021917,2]
[311873923,1705482646266,-500.0,0.00021917,2]
[311873924,1705482646275,-500.0,0.00021917,2]
[311873925,1705482646285,-500.0,0.00021917,2]
[311873926,1705482646295,-500.0,0.00021917,2]
[311873927,1705482646304,-637.59,0.00021917,2]
[311873928,1705482646313,-4448.07,0.00021917,2]
[311873929,1705482646323,-461.5466423,0.00021917,2]
[311873930,1705482646333,-2843.98,0.00021917,2]
[311873931,1705482646342,-550.95,0.00021917,2]
[311873932,1705482646351,-500.0,0.00021917,2]
[311873933,1705482646361,-14413.51,0.00021917,2]
[311873934,1705482646370,-500.0,0.00021917,2]
[311873935,1705482646379,-1849.82,0.00021917,2]
[311873936,1705482646389,-13963.23,0.00021917,2]
[311873937,1705482646398,-500.0,0.00021917,2]
[311873938,1705482646407,-1462.83,0.00021917,2]
[311873939,1705482646416,-500.0,0.00021917,2]
[311873940,1705482646426,-1185.99,0.00021917,2]
[311873941,1705482646435,-500.0,0.00021917,2]
[311873942,1705482646444,-795.89,0.00021917,2]
[311873943,1705482646453,-505.39871356,0.00021917,2]
[311873944,1705482646463,-500.0,0.00021917,2]
[311873945,1705482646473,-500.0,0.00021917,2]
[311873946,1705482646483,-500.0,0.00021917,2]
[311873947,1705482646492,-500.0,0.00021917,2]
[311873948,1705482646502,-1030.87,0.00021917,2]
[311873949,1705482646511,-1245.67,0.00021917,2]
[311873950,1705482646520,-500.0,0.00021917,2]
[311873951,1705482646530,-500.0,0.00021917,2]
[311873952,1705482646539,-842.45,0.00021917,2]
[311873953,1705482646548,-1717.89,0.00021917,2]
[311873954,1705482646558,-603.19,0.00021917,2]
[311873955,1705482646567,-500.0,0.00021917,2]
[311873956,1705482646576,-500.0,0.00021917,2]
[311873957,1705482646586,-500.0,0.00021917,2]
[311873958,1705482646682,-572.16,0.00021917,2]
[311873959,1705482646691,-3456.76,0.00021917,2]
[311873960,1705482646700,-500.0,0.00021917,2]
[311873961,1705482646709,-1684.44,0.00021917,2]
[311873962,1705482646718,-500.0,0.00021917,2]
[311873963,1705482646727,-500.0,0.00021917,2]
[311873964,1705482646736,-500.0,0.00021917,2]
[311873965,1705482646745,-555.66,0.00021917,2]
[311873966,1705482646754,-856.54,0.00021917,2]
[311873967,1705482646763,-3042.52,0.00021917,2]
[311873968,1705482646772,-500.0,0.00021917,2]
[311873969,1705482646781,-4530.95,0.00021917,2]
[311873970,1705482646790,-2822.9,0.00021917,2]
[311873971,1705482646799,-3662.09,0.00021917,2]
[311873972,1705482646808,-4450.88,0.00021917,2]
[311873973,1705482646817,-840.22,0.00021917,2]
[311873974,1705482646826,-500.0,0.00021917,2]
[311873975,1705482646835,-500.0,0.00021917,2]
[311873976,1705482646844,-380.11754698,0.00021917,2]
[311873977,1705482646853,-500.0,0.00021917,2]
[311873978,1705482646862,-754.31,0.00021917,2]
[311873979,1705482646871,-794.97,0.00021917,2]
[311873980,1705482646880,-509.13924982,0.00021917,2]
[311873981,1705482646889,-887.08,0.00021917,2]
[311873982,1705482646899,-500.0,0.00021917,2]
[311873983,1705482646908,-500.0,0.00021917,2]
[311873984,1705482646917,-1938.36,0.00021917,2]
[311873985,1705482646926,-507.82967375,0.00021917,2]
[311873986,1705482646935,-8385.5,0.00021917,2]
[311873987,1705482646944,-724.85,0.00021917,2]
[311873988,1705482646954,-508.91251526,0.00021917,2]
[311873989,1705482646963,-2256.93,0.00021917,2]
[311873990,1705482646972,-651.98,0.00021917,2]
[311873991,1705482646981,-39450.37,0.00021917,2]
[311873992,1705482646990,-500.0,0.00021917,2]
[311873993,1705482646999,-500.0,0.00021917,2]
[311873994,1705482647008,-918.47,0.00021917,2]
[311873995,1705482647017,-6156.41,0.00021917,2]
[311873996,1705482647025,-500.0,0.00021917,2]
[311873997,1705482647034,-500.0,0.00021917,2]
[311873998,1705482647043,-1804.23,0.00021917,2]
[311873999,1705482647052,-863.6,0.00021917,2]
[311874000,1705482647061,-2378.55,0.00021917,2]
[311874001,1705482647070,-563.4,0.00021917,2]
[311874002,1705482647079,-1944.01,0.00021917,2]
[311874003,1705482647088,-500.0,0.00021917,2]
[311874004,1705482647097,-500.0,0.00021917,2]
[311874005,1705482647106,-500.0,0.00021917,2]
[311874006,1705482647115,-500.0,0.00021917,2]
[311874007,1705482647124,-5109.88,0.00021917,2]
[311874008,1705482647133,-616.71,0.00021917,2]
[311874009,1705482647142,-500.0,0.00021917,2]
[311874010,1705482647151,-500.0,0.00021917,2]
[311874011,1705482647160,-500.0,0.00021917,2]
[311874012,1705482647169,-642.19,0.00021917,2]
[311874013,1705482647178,-824.52,0.00021917,2]
[311874014,1705482647187,-1715.84,0.00021917,2]
[311874015,1705482647196,-4015.67,0.00021917,2]
[311874016,1705482647207,-503.98818281,0.00021917,2]
[311874017,1705482647219,-741.43,0.00021917,2]
[311874018,1705482647230,-500.0,0.00021917,2]
[311874019,1705482647239,-500.0,0.00021917,2]
[311874020,1705482647248,-504.28430819,0.00021917,2]
[311874021,1705482647258,-500.0,0.00021917,2]
[311874022,1705482647267,-862.67,0.00021917,2]
[311874023,1705482647275,-500.0,0.00021917,2]
[311874024,1705482647285,-922.7,0.00021917,2]
[311874025,1705482647295,-2367.68,0.00021917,2]
[311874026,1705482647304,-500.0,0.00021917,2]
[311874027,1705482647313,-500.0,0.00021917,2]
[311874028,1705482647324,-500.0,0.00021917,2]
[311874029,1705482647333,-1087.97,0.00021917,2]
[311874030,1705482647342,-2142.9,0.00021917,2]
[311874031,1705482647352,-500.0,0.00021917,2]
[311874032,1705482647361,-1798.68,0.00021917,2]
[311874033,1705482647370,-500.0,0.00021917,2]
[311874034,1705482647379,-15238.45,0.00021917,2]
[311874035,1705482647388,-1832.42,0.00021917,2]
[311874036,1705482647397,-500.0,0.00021917,2]
[311874037,1705482647406,-500.0,0.00021917,2]
[311874038,1705482647415,-1399.72,0.00021917,2]
[311874039,1705482647425,-541.25,0.00021917,2]
[311874040,1705482647437,-1214.97,0.00021917,2]
[311874041,1705482647447,-556.48,0.00021917,2]
[311874042,1705482647456,-500.0,0.00021917,2]
[311874043,1705482647465,-500.0,0.00021917,2]
[311874044,1705482647477,-500.0,0.00021917,2]
[311874045,1705482647487,-500.0,0.00021917,2]
[311874046,1705482647497,-1684.57,0.00021917,2]
[311874047,1705482647506,-5806.69,0.00021917,2]
[311874048,1705482647516,-500.0,0.00021917,2]
[311874049,1705482647525,-1930.81,0.00021917,2]
[311874050,1705482647534,-1113.94,0.00021917,2]
[311874051,1705482647544,-796.07,0.00021917,2]
[311874052,1705482647554,-500.0,0.00021917,2]
[311874053,1705482647563,-500.0,0.00021917,2]
[311874054,1705482647575,-557.92,0.00021917,2]
[311874055,1705482647585,-500.0,0.00021917,2]
[311874056,1705482647594,-8957.39,0.00021917,2]
[311874057,1705482647604,-655.53,0.00021917,2]
[311874058,1705482647614,-2161.08,0.00021917,2]
[311874059,1705482647623,-500.0,0.00021917,2]
[311874060,1705482647632,-500.0,0.00021917,2]
[311874061,1705482647642,-868.66,0.00021917,2]
[311874062,1705482647651,-500.0,0.00021917,2]
[311874063,1705482647660,-500.0,0.00021917,2]
[311874064,1705482647670,-4230.06,0.00021917,2]
[311874065,1705482647679,-500.0,0.00021917,2]
[311874066,1705482647689,-500.0,0.00021917,2]
[311874067,1705482647698,-515.69,0.00021917,2]
[311874068,1705482647708,-1270.83,0.00021917,2]
[311874069,1705482647717,-1910.48,0.00021917,2]
[311874070,1705482647726,-500.0,0.00021917,2]
[311874071,1705482647736,-1183.83,0.00021917,2]
[311874072,1705482647749,-749.18,0.00021917,2]
[311874073,1705482647758,-1317.6,0.00021917,2]
[311874074,1705482647768,-500.0,0.00021917,2]
[311874075,1705482647777,-1824.95,0.00021917,2]
[311874076,1705482647787,-500.0,0.00021917,2]
[311874077,1705482647796,-743.63,0.00021917,2]